{"text_format":"1","workbook":"xlsx","n_sheets":14,"sheets":["E010 IND 1","E010 IND 2","E010 IND 3","E010 IND 4","E010 IND 5","E010 IND 6","E010 IND 7","E010 IND 8","E010 IND 9","E010 IND 10","E010 IND 11","E010 IND 12","E010 IND 13","E010 IND 14"],"not_rendered":{"charts":42,"images":1,"macros":1,"external_links":0,"defined_names":42,"comments":0,"pivot_tables":0},"unopened":[],"bounds":{"document_bytes":16777216,"sheet_cells":100000,"rows_first":2000,"rows_last":500,"rows_between":2000,"halvings":0,"cell_chars":16384,"cell_head_chars":4096},"cells_cut":0,"cells_raw":0,"read":"whole","date_system":"1900"}

{"sheet":"E010 IND 1","index":0,"n_rows":50,"n_cols":7,"rows_kept":50,"cut":false,"hidden":false,"merged":[[32,5,32,6],[33,5,46,6],[48,3,48,4],[48,5,48,6],[49,3,49,4],[49,5,49,6],[33,3,33,4],[32,3,32,4],[26,3,26,6],[27,1,27,6],[28,1,28,6],[29,1,29,6],[30,1,30,6],[25,3,25,6],[2,4,2,5],[3,4,3,5],[4,4,4,5],[5,4,5,5],[7,1,7,3],[12,6,12,7],[13,1,23,1],[13,2,13,3],[14,2,14,3],[16,2,23,2]]}
[null,"COMISION COORDINADORA DE INSTITUTOS NACIONALES DE SALUD"]
[null,"Y HOSPITALES DE ALTA ESPECIALIDAD"]
[null,"Coordinación de Proyectos Estratégicos",null,null,"MATRIZ DE INDICADORES PARA RESULTADOS (MIR) 2016"]
[null,null,null,null,"PP:  E010 \"FORMACIÓN Y CAPACITACIÓN DE RECURSOS HUMANOS PARA LA SALUD\" "]
[]
[null,null,null,null,"EVOLUCIÓN EN EL PERIODO"]
[]
[null,"Clave entidad/unidad:   NCA"]
[]
[null,"Entidad/unidad:   INSTITUTO NACIONAL DE CARDIOLOGÍA IGNACIO CHÁVEZ"]
[]
[]
[]
[null,1,"LINEA BASE INDICADOR",null,"INDICADOR","VARIABLE 1 ","VARIABLE 2"]
[null,null,"AÑO",null,"Tasa de incremento anual de becas de formación de especialistas médicos\n\nFÓRMULA: (VARIABLE1 - VARIABLE 2)/ VARIABLE2 X 100","Becas otorgadas en el año actual por la Secretaría de Salud para formar médicos especialistas","Becas otorgadas en el año anterior por la Secretaría de Salud para formar médicos especialistas "]
[null,null,"1/",2016,{"$f":"IF(G16=0,0,ROUND((F16-G16)/G16*100,1))","v":5.2},7789,7401]
[null,null,"2/","2009",{"$f":"IF(G17=0,0,ROUND((F17-G17)/G17*100,1))","v":0}]
[null,null,null,"2010",{"$f":"IF(G18=0,0,ROUND((F18-G18)/G18*100,1))","v":0}]
[null,null,null,"2011",0]
[null,null,null,"2012",0]
[null,null,null,"2013",0]
[null,null,null,"2014",0]
[null,null,null,"2015",0]
[null,null,null,"2016",0]
[]
[null,"1/",null,"Línea base del indicador registrada en el PASH 2016: año en que empieza a operar el indicador para el programa (CCINSHAE)."]
[null,"2/",null,"Línea base del indicador institucional: año en que empieza a operar el indicador para la Institución."]
[null,"INSTRUCTIVO"]
[null,"I. Llenar los valores de la tabla a partir del año en que la entidad comprometió el indicador (Línea base)"]
[null,"II. Llenar todos los ejercicios fiscales posteriores al año de la línea base hasta el año 2016 con el valor de cierre de cada ejercicio fiscal; en el caso que sea un indicador nuevo registrar el valor programado."]
[null,"III. Los ejercicios fiscales en que no se comprometío el indicador deberán registrar un valor de cero."]
[]
[null,null,null,{"$f":"E14","v":"INDICADOR"},null,"Breve Explicación del comportamiento del indicador y sus variables en el periodo (desde línea base)"]
[null,null,null,{"$f":"E15","v":"Tasa de incremento anual de becas de formación de especialistas médicosFÓRMULA: (VARIABLE1 - VARIABLE 2)/ VARIABLE2 X 100"},null,"ESTE INDICADOR CORRESPONDE A LA DIRECCIÓN GENERAL DE CALIDAD Y EDUCACIÓN EN SALUD"]
[]
[]
[]
[]
[]
[]
[]
[]
[]
[]
[]
[]
[]
[]
[null,null,null,{"$f":"F14","v":"VARIABLE 1 "},null,{"$f":"G14","v":"VARIABLE 2"}]
[null,null,null,{"$f":"F15","v":"Becas otorgadas en el año actual por la Secretaría de Salud para formar médicos especialistas"},null,{"$f":"G15","v":"Becas otorgadas en el año anterior por la Secretaría de Salud para formar médicos especialistas "}]

{"sheet":"E010 IND 2","index":1,"n_rows":50,"n_cols":7,"rows_kept":50,"cut":false,"hidden":false,"merged":[[33,3,33,4],[33,5,46,6],[48,3,48,4],[48,5,48,6],[49,3,49,4],[49,5,49,6],[32,3,32,4],[32,5,32,6],[12,6,12,7],[13,1,23,1],[13,2,13,3],[14,2,14,3],[16,2,23,2],[25,3,25,6],[26,3,26,6],[27,1,27,6],[28,1,28,6],[29,1,29,6],[30,1,30,6],[2,4,2,5],[3,4,3,5],[4,4,4,5],[5,4,5,5],[7,1,7,3]]}
[null,"COMISION COORDINADORA DE INSTITUTOS NACIONALES DE SALUD"]
[null,"Y HOSPITALES DE ALTA ESPECIALIDAD"]
[null,"Coordinación de Proyectos Estratégicos",null,null,"MATRIZ DE INDICADORES PARA RESULTADOS (MIR) 2016"]
[null,null,null,null,"PP:  E010 \"FORMACIÓN Y CAPACITACIÓN DE RECURSOS HUMANOS PARA LA SALUD\" "]
[]
[null,null,null,null,"EVOLUCIÓN EN EL PERIODO"]
[]
[null,"Clave entidad/unidad:   NCA"]
[]
[null,"Entidad/unidad:   INSTITUTO NACIONAL DE CARDIOLOGÍA IGNACIO CHÁVEZ"]
[]
[]
[]
[null,2,"LINEA BASE INDICADOR",null,"INDICADOR","VARIABLE 1 ","VARIABLE 2"]
[null,null,"AÑO",null,"Porcentaje de plazas de residentes ocupadas respecto a las disponibles.\n\nFÓRMULA: VARIABLE1 / VARIABLE2 X 100","Número de plazas de médicos residentes ocupadas ","Número de plazas de médicos residentes disponibles "]
[null,null,"1/",2016,{"$f":"IF(G16=0,0,ROUND((F16)/G16*100,1))","v":95},7401,7789]
[null,null,"2/","2009",{"$f":"IF(G17=0,0,ROUND((F17)/G17*100,1))","v":0}]
[null,null,null,"2010",{"$f":"IF(G18=0,0,ROUND((F18)/G18*100,1))","v":0}]
[null,null,null,"2011",0]
[null,null,null,"2012",0]
[null,null,null,"2013",0]
[null,null,null,"2014",0]
[null,null,null,"2015",0]
[null,null,null,"2016",0]
[]
[null,"1/",null,"Línea base del indicador registrada en el PASH 2016: año en que empieza a operar el indicador para el programa (CCINSHAE)."]
[null,"2/",null,"Línea base del indicador institucional: año en que empieza a operar el indicador para la Institución."]
[null,"INSTRUCTIVO"]
[null,"I. Llenar los valores de la tabla a partir del año en que la entidad comprometió el indicador (Línea base)"]
[null,"II. Llenar todos los ejercicios fiscales posteriores al año de la línea base hasta el año 2016 con el valor de cierre de cada ejercicio fiscal; en el caso que sea un indicador nuevo registrar el valor programado."]
[null,"III. Los ejercicios fiscales en que no se comprometío el indicador deberán registrar un valor de cero."]
[]
[null,null,null,{"$f":"E14","v":"INDICADOR"},null,"Breve Explicación del comportamiento del indicador y sus variables en el periodo (desde línea base)"]
[null,null,null,{"$f":"E15","v":"Porcentaje de plazas de residentes ocupadas respecto a las disponibles.FÓRMULA: VARIABLE1 / VARIABLE2 X 100"},null,"ESTE INDICADOR CORRESPONDE A LA DIRECCIÓN GENERAL DE CALIDAD Y EDUCACIÓN EN SALUD"]
[]
[]
[]
[]
[]
[]
[]
[]
[]
[]
[]
[]
[]
[]
[null,null,null,{"$f":"F14","v":"VARIABLE 1 "},null,{"$f":"G14","v":"VARIABLE 2"}]
[null,null,null,{"$f":"F15","v":"Número de plazas de médicos residentes ocupadas "},null,{"$f":"G15","v":"Número de plazas de médicos residentes disponibles "}]

{"sheet":"E010 IND 3","index":2,"n_rows":50,"n_cols":7,"rows_kept":50,"cut":false,"hidden":false,"merged":[[33,3,33,4],[33,5,46,6],[48,3,48,4],[48,5,48,6],[49,3,49,4],[49,5,49,6],[32,3,32,4],[32,5,32,6],[12,6,12,7],[13,1,23,1],[13,2,13,3],[14,2,14,3],[16,2,23,2],[25,3,25,6],[26,3,26,6],[27,1,27,6],[28,1,28,6],[29,1,29,6],[30,1,30,6],[2,4,2,5],[3,4,3,5],[4,4,4,5],[5,4,5,5],[7,1,7,3]]}
[null,"COMISION COORDINADORA DE INSTITUTOS NACIONALES DE SALUD"]
[null,"Y HOSPITALES DE ALTA ESPECIALIDAD"]
[null,"Coordinación de Proyectos Estratégicos",null,null,"MATRIZ DE INDICADORES PARA RESULTADOS (MIR) 2016"]
[null,null,null,null,"PP:  E010 \"FORMACIÓN Y CAPACITACIÓN DE RECURSOS HUMANOS PARA LA SALUD\" "]
[]
[null,null,null,null,"EVOLUCIÓN EN EL PERIODO"]
[]
[null,"Clave entidad/unidad:   NCA"]
[]
[null,"Entidad/unidad:   INSTITUTO NACIONAL DE CARDIOLOGÍA IGNACIO CHÁVEZ"]
[]
[]
[]
[null,3,"LINEA BASE INDICADOR",null,"INDICADOR","VARIABLE 1 ","VARIABLE 2"]
[null,null,"AÑO",null,"Eficiencia terminal de médicos especialistas \n\nFÓRMULA: VARIABLE1 / VARIABLE2 X 100","Número de médicos especialistas en formación de la misma cohorte que obtienen constancia de conclusión de estudios de posgrado clínico ","Número de médicos especialistas en formación  de la misma cohorte inscritos a estudios de posgrado clínico "]
[null,null,"1/","2009",{"$f":"IF(G16=0,0,ROUND(F16/G16*100,1))","v":75.5},2049,2715]
[null,null,"2/","2009",{"$f":"IF(G17=0,0,ROUND((F17)/G17*100,1))","v":95.5},105,110]
[null,null,null,"2010",{"$f":"IF(G18=0,0,ROUND((F18)/G18*100,1))","v":99},100,101]
[null,null,null,"2011",{"$f":"IF(G19=0,0,ROUND((F19)/G19*100,1))","v":97.2},105,108]
[null,null,null,"2012",{"$f":"IF(G20=0,0,ROUND((F20)/G20*100,1))","v":100},112,112]
[null,null,null,"2013",{"$f":"IF(G21=0,0,ROUND((F21)/G21*100,1))","v":99.1},107,108]
[null,null,null,"2014",{"$f":"IF(G22=0,0,ROUND((F22)/G22*100,1))","v":99.1},111,112]
[null,null,null,"2015",97.5,116,119]
[null,null,null,"2016",97.5,116,119]
[]
[null,"1/",null,"Línea base del indicador registrada en el PASH 2016: año en que empieza a operar el indicador para el programa (CCINSHAE)."]
[null,"2/",null,"Línea base del indicador institucional: año en que empieza a operar el indicador para la Institución."]
[null,"INSTRUCTIVO"]
[null,"I. Llenar los valores de la tabla a partir del año en que la entidad comprometió el indicador (Línea base)"]
[null,"II. Llenar todos los ejercicios fiscales posteriores al año de la línea base hasta el año 2016 con el valor de cierre de cada ejercicio fiscal; en el caso que sea un indicador nuevo registrar el valor programado."]
[null,"III. Los ejercicios fiscales en que no se comprometío el indicador deberán registrar un valor de cero."]
[]
[null,null,null,{"$f":"E14","v":"INDICADOR"},null,"Breve Explicación del comportamiento del indicador y sus variables en el periodo (desde línea base)"]
[null,null,null,{"$f":"E15","v":"Eficiencia terminal de médicos especialistas FÓRMULA: VARIABLE1 / VARIABLE2 X 100"}]
[]
[]
[]
[]
[]
[]
[]
[]
[]
[]
[]
[]
[]
[]
[null,null,null,{"$f":"F14","v":"VARIABLE 1 "},null,{"$f":"G14","v":"VARIABLE 2"}]
[null,null,null,{"$f":"F15","v":"Número de médicos especialistas en formación de la misma cohorte que obtienen constancia de conclusión de estudios de posgrado clínico "},null,{"$f":"G15","v":"Número de médicos especialistas en formación  de la misma cohorte inscritos a estudios de posgrado clínico "}]

{"sheet":"E010 IND 4","index":3,"n_rows":50,"n_cols":7,"rows_kept":50,"cut":false,"hidden":false,"merged":[[33,3,33,4],[33,5,46,6],[48,3,48,4],[48,5,48,6],[49,3,49,4],[49,5,49,6],[32,3,32,4],[32,5,32,6],[12,6,12,7],[13,1,23,1],[13,2,13,3],[14,2,14,3],[16,2,23,2],[25,3,25,6],[26,3,26,6],[27,1,27,6],[28,1,28,6],[29,1,29,6],[30,1,30,6],[2,4,2,5],[3,4,3,5],[4,4,4,5],[5,4,5,5],[7,1,7,3]]}
[null,"COMISION COORDINADORA DE INSTITUTOS NACIONALES DE SALUD"]
[null,"Y HOSPITALES DE ALTA ESPECIALIDAD"]
[null,"Coordinación de Proyectos Estratégicos",null,null,"MATRIZ DE INDICADORES PARA RESULTADOS (MIR) 2016"]
[null,null,null,null,"PP:  E010 \"FORMACIÓN Y CAPACITACIÓN DE RECURSOS HUMANOS PARA LA SALUD\" "]
[]
[null,null,null,null,"EVOLUCIÓN EN EL PERIODO"]
[]
[null,"Clave entidad/unidad:   NCA"]
[]
[null,"Entidad/unidad:    INSTITUTO NACIONAL DE CARDIOLOGÍA IGNACIO CHÁVEZ"]
[]
[]
[]
[null,4,"LINEA BASE INDICADOR",null,"INDICADOR","VARIABLE 1 ","VARIABLE 2"]
[null,null,"AÑO",null,"Eficiencia terminal de posgrado no clínico\n\nFÓRMULA: VARIABLE1 / VARIABLE2 X 100","Número de profesionales en posgrados no clínicos de la  misma cohorte con constancia de terminación","Total de profesionales en posgrados no clínicos inscritos en la misma cohorte x 100"]
[null,null,"1/","2011",{"$f":"IF(G16=0,0,ROUND(F16/G16*100,1))","v":80.900000000000006},1116,1380]
[null,null,"2/","2009",{"$f":"IF(G17=0,0,ROUND((F17)/G17*100,1))","v":0}]
[null,null,null,"2010",{"$f":"IF(G18=0,0,ROUND((F18)/G18*100,1))","v":0}]
[null,null,null,"2011",95,19,20]
[null,null,null,"2012",93.3,14,15]
[null,null,null,"2013",90.5,38,42]
[null,null,null,"2014",81.3,13,16]
[null,null,null,"2015",88.9,24,27]
[null,null,null,"2016",90,9,10]
[]
[null,"1/",null,"Línea base del indicador registrada en el PASH 2016: año en que empieza a operar el indicador para el programa (CCINSHAE)."]
[null,"2/",null,"Línea base del indicador institucional: año en que empieza a operar el indicador para la Institución."]
[null,"INSTRUCTIVO"]
[null,"I. Llenar los valores de la tabla a partir del año en que la entidad comprometió el indicador (Línea base)"]
[null,"II. Llenar todos los ejercicios fiscales posteriores al año de la línea base hasta el año 2016 con el valor de cierre de cada ejercicio fiscal; en el caso que sea un indicador nuevo registrar el valor programado."]
[null,"III. Los ejercicios fiscales en que no se comprometío el indicador deberán registrar un valor de cero."]
[]
[null,null,null,{"$f":"E14","v":"INDICADOR"},null,"Breve Explicación del comportamiento del indicador y sus variables en el periodo (desde línea base)"]
[null,null,null,{"$f":"E15","v":"Eficiencia terminal de posgrado no clínicoFÓRMULA: VARIABLE1 / VARIABLE2 X 100"}]
[]
[]
[]
[]
[]
[]
[]
[]
[]
[]
[]
[]
[]
[]
[null,null,null,{"$f":"F14","v":"VARIABLE 1 "},null,{"$f":"G14","v":"VARIABLE 2"}]
[null,null,null,{"$f":"F15","v":"Número de profesionales en posgrados no clínicos de la  misma cohorte con constancia de terminación"},null,{"$f":"G15","v":"Total de profesionales en posgrados no clínicos inscritos en la misma cohorte x 100"}]

{"sheet":"E010 IND 5","index":4,"n_rows":50,"n_cols":7,"rows_kept":50,"cut":false,"hidden":false,"merged":[[2,4,2,5],[3,4,3,5],[4,4,4,5],[5,4,5,5],[7,1,7,3],[32,3,32,4],[32,5,32,6],[12,6,12,7],[13,1,23,1],[13,2,13,3],[14,2,14,3],[16,2,23,2],[25,3,25,6],[26,3,26,6],[27,1,27,6],[28,1,28,6],[29,1,29,6],[30,1,30,6],[33,3,33,4],[33,5,46,6],[48,3,48,4],[48,5,48,6],[49,3,49,4],[49,5,49,6]]}
[null,"COMISION COORDINADORA DE INSTITUTOS NACIONALES DE SALUD"]
[null,"Y HOSPITALES DE ALTA ESPECIALIDAD"]
[null,"Coordinación de Proyectos Estratégicos",null,null,"MATRIZ DE INDICADORES PARA RESULTADOS (MIR) 2016"]
[null,null,null,null,"PP:  E010 \"FORMACIÓN Y CAPACITACIÓN DE RECURSOS HUMANOS PARA LA SALUD\" "]
[]
[null,null,null,null,"EVOLUCIÓN EN EL PERIODO"]
[]
[null,"Clave entidad/unidad:   NCA"]
[]
[null,"Entidad/unidad:   INSTITUTO NACIONAL DE CARDIOLOGÍA IGNACIO CHÁVEZ"]
[]
[]
[]
[null,5,"LINEA BASE INDICADOR",null,"INDICADOR","VARIABLE 1 ","VARIABLE 2"]
[null,null,"AÑO",null,"Porcentaje de profesionales que concluyeron cursos de educación continua\n\nFÓRMULA: VARIABLE1 / VARIABLE2 X 100","Número de profesionales de la salud que  recibieron constancia de conclusión de estudios  de educación continua impartida por la institución","Número de profesionales de la salud inscritos a los cursos de educación continua realizados por la institución durante el periodo reportado  x 100"]
[null,null,"1/","2011",{"$f":"IF(G16=0,0,ROUND(F16/G16*100,1))","v":96.6},62582,64767]
[null,null,"2/","2009",{"$f":"IF(G17=0,0,ROUND((F17)/G17*100,1))","v":0}]
[null,null,null,"2010",{"$f":"IF(G18=0,0,ROUND((F18)/G18*100,1))","v":0}]
[null,null,null,"2011",96.3,2656,2759]
[null,null,null,"2012",95.1,3524,3706]
[null,null,null,"2013",97.2,4200,4321]
[null,null,null,"2014",98,3849,3928]
[null,null,null,"2015",96.7,3294,3405]
[null,null,null,"2016",100,5249,5249]
[]
[null,"1/",null,"Línea base del indicador registrada en el PASH 2016: año en que empieza a operar el indicador para el programa (CCINSHAE)."]
[null,"2/",null,"Línea base del indicador institucional: año en que empieza a operar el indicador para la Institución."]
[null,"INSTRUCTIVO"]
[null,"I. Llenar los valores de la tabla a partir del año en que la entidad comprometió el indicador (Línea base)"]
[null,"II. Llenar todos los ejercicios fiscales posteriores al año de la línea base hasta el año 2016 con el valor de cierre de cada ejercicio fiscal; en el caso que sea un indicador nuevo registrar el valor programado."]
[null,"III. Los ejercicios fiscales en que no se comprometío el indicador deberán registrar un valor de cero."]
[]
[null,null,null,{"$f":"E14","v":"INDICADOR"},null,"Breve Explicación del comportamiento del indicador y sus variables en el periodo (desde línea base)"]
[null,null,null,{"$f":"E15","v":"Porcentaje de profesionales que concluyeron cursos de educación continuaFÓRMULA: VARIABLE1 / VARIABLE2 X 100"}]
[]
[]
[]
[]
[]
[]
[]
[]
[]
[]
[]
[]
[]
[]
[null,null,null,{"$f":"F14","v":"VARIABLE 1 "},null,{"$f":"G14","v":"VARIABLE 2"}]
[null,null,null,{"$f":"F15","v":"Número de profesionales de la salud que  recibieron constancia de conclusión de estudios  de educación continua impartida por la institución"},null,{"$f":"G15","v":"Número de profesionales de la salud inscritos a los cursos de educación continua realizados por la institución durante el periodo reportado  x 100"}]

{"sheet":"E010 IND 6","index":5,"n_rows":50,"n_cols":7,"rows_kept":50,"cut":false,"hidden":false,"merged":[[2,4,2,5],[3,4,3,5],[4,4,4,5],[5,4,5,5],[7,1,7,3],[32,3,32,4],[32,5,32,6],[12,6,12,7],[13,1,23,1],[13,2,13,3],[14,2,14,3],[16,2,23,2],[25,3,25,6],[26,3,26,6],[27,1,27,6],[28,1,28,6],[29,1,29,6],[30,1,30,6],[33,3,33,4],[33,5,46,6],[48,3,48,4],[48,5,48,6],[49,3,49,4],[49,5,49,6]]}
[null,"COMISION COORDINADORA DE INSTITUTOS NACIONALES DE SALUD"]
[null,"Y HOSPITALES DE ALTA ESPECIALIDAD"]
[null,"Coordinación de Proyectos Estratégicos",null,null,"MATRIZ DE INDICADORES PARA RESULTADOS (MIR) 2016"]
[null,null,null,null,"PP:  E010 \"FORMACIÓN Y CAPACITACIÓN DE RECURSOS HUMANOS PARA LA SALUD\" "]
[]
[null,null,null,null,"EVOLUCIÓN EN EL PERIODO"]
[]
[null,"Clave entidad/unidad:   NCA"]
[]
[null,"Entidad/unidad:   INSTITUTO NACIONAL DE CARDIOLOGÍA IGNACIO CHÁVEZ"]
[]
[]
[]
[null,6,"LINEA BASE INDICADOR",null,"INDICADOR","VARIABLE 1 ","VARIABLE 2"]
[null,null,"AÑO",null,"Porcentaje de cursos de formación con promedio de calificación de percepción de calidad superior a 80 puntos\n\nFÓRMULA: VARIABLE1 / VARIABLE2 X 100","Número de cursos de formación de pogrado impartidos con promedio de calificación de percepción de calidad por parte de los médicos en formación superior a 80 puntos","Total de cursos de formación de posgrado para médicos en formación impartidos en el periodo x 100"]
[null,null,"1/","2016",{"$f":"IF(G16=0,0,ROUND(F16/G16*100,1))","v":87},474,545]
[null,null,"2/","2009",{"$f":"IF(G17=0,0,ROUND((F17)/G17*100,1))","v":0}]
[null,null,null,"2010",{"$f":"IF(G18=0,0,ROUND((F18)/G18*100,1))","v":0}]
[null,null,null,"2011",0]
[null,null,null,"2012",0]
[null,null,null,"2013",0]
[null,null,null,"2014",0]
[null,null,null,"2015",0]
[null,null,null,"2016",100,23,23]
[]
[null,"1/",null,"Línea base del indicador registrada en el PASH 2016: año en que empieza a operar el indicador para el programa (CCINSHAE)."]
[null,"2/",null,"Línea base del indicador institucional: año en que empieza a operar el indicador para la Institución."]
[null,"INSTRUCTIVO"]
[null,"I. Llenar los valores de la tabla a partir del año en que la entidad comprometió el indicador (Línea base)"]
[null,"II. Llenar todos los ejercicios fiscales posteriores al año de la línea base hasta el año 2016 con el valor de cierre de cada ejercicio fiscal; en el caso que sea un indicador nuevo registrar el valor programado."]
[null,"III. Los ejercicios fiscales en que no se comprometío el indicador deberán registrar un valor de cero."]
[]
[null,null,null,{"$f":"E14","v":"INDICADOR"},null,"Breve Explicación del comportamiento del indicador y sus variables en el periodo (desde línea base)"]
[null,null,null,{"$f":"E15","v":"Porcentaje de cursos de formación con promedio de calificación de percepción de calidad superior a 80 puntosFÓRMULA: VARIABLE1 / VARIABLE2 X 100"}]
[]
[]
[]
[]
[]
[]
[]
[]
[]
[]
[]
[]
[]
[]
[null,null,null,{"$f":"F14","v":"VARIABLE 1 "},null,{"$f":"G14","v":"VARIABLE 2"}]
[null,null,null,{"$f":"F15","v":"Número de cursos de formación de pogrado impartidos con promedio de calificación de percepción de calidad por parte de los médicos en formación superior a 80 puntos"},null,{"$f":"G15","v":"Total de cursos de formación de posgrado para médicos en formación impartidos en el periodo x 100"}]

{"sheet":"E010 IND 7","index":6,"n_rows":50,"n_cols":7,"rows_kept":50,"cut":false,"hidden":false,"merged":[[2,4,2,5],[3,4,3,5],[4,4,4,5],[5,4,5,5],[7,1,7,3],[32,3,32,4],[32,5,32,6],[12,6,12,7],[13,1,23,1],[13,2,13,3],[14,2,14,3],[16,2,23,2],[25,3,25,6],[26,3,26,6],[27,1,27,6],[28,1,28,6],[29,1,29,6],[30,1,30,6],[33,3,33,4],[33,5,46,6],[48,3,48,4],[48,5,48,6],[49,3,49,4],[49,5,49,6]]}
[null,"COMISION COORDINADORA DE INSTITUTOS NACIONALES DE SALUD"]
[null,"Y HOSPITALES DE ALTA ESPECIALIDAD"]
[null,"Coordinación de Proyectos Estratégicos",null,null,"MATRIZ DE INDICADORES PARA RESULTADOS (MIR) 2016"]
[null,null,null,null,"PP:  E010 \"FORMACIÓN Y CAPACITACIÓN DE RECURSOS HUMANOS PARA LA SALUD\" "]
[]
[null,null,null,null,"EVOLUCIÓN EN EL PERIODO"]
[]
[null,"Clave entidad/unidad:   NCA"]
[]
[null,"Entidad/unidad:   INSTITUTO NACIONAL DE CARDIOLOGÍA IGNACIO CHÁVEZ"]
[]
[]
[]
[null,7,"LINEA BASE INDICADOR",null,"INDICADOR","VARIABLE 1 ","VARIABLE 2"]
[null,null,"AÑO",null,"Porcentaje de cursos de posgrado no clínico con promedio de calificación de percepción de calidad superior a 80 puntos\n\nFÓRMULA: VARIABLE1 / VARIABLE2 X 100","Número de cursos de formación en posgrado no clínico impartidos con promedio de calificación de percepción de calidad superior a 80 puntos ","Total de cursos de formación de posgrado no clínico impartidos en el periodo X 100"]
[null,null,"1/","2016",{"$f":"IF(G16=0,0,ROUND(F16/G16*100,1))","v":82.3},326,396]
[null,null,"2/","2009",{"$f":"IF(G17=0,0,ROUND(F17/G17*100,1))","v":0}]
[null,null,null,"2010",{"$f":"IF(G18=0,0,ROUND(F18/G18*100,1))","v":0}]
[null,null,null,"2011",0]
[null,null,null,"2012",0]
[null,null,null,"2013",0]
[null,null,null,"2014",0]
[null,null,null,"2015",0]
[null,null,null,"2016",100,2,2]
[]
[null,"1/",null,"Línea base del indicador registrada en el PASH 2016: año en que empieza a operar el indicador para el programa (CCINSHAE)."]
[null,"2/",null,"Línea base del indicador institucional: año en que empieza a operar el indicador para la Institución."]
[null,"INSTRUCTIVO"]
[null,"I. Llenar los valores de la tabla a partir del año en que la entidad comprometió el indicador (Línea base)"]
[null,"II. Llenar todos los ejercicios fiscales posteriores al año de la línea base hasta el año 2016 con el valor de cierre de cada ejercicio fiscal; en el caso que sea un indicador nuevo registrar el valor programado."]
[null,"III. Los ejercicios fiscales en que no se comprometío el indicador deberán registrar un valor de cero."]
[]
[null,null,null,{"$f":"E14","v":"INDICADOR"},null,"Breve Explicación del comportamiento del indicador y sus variables en el periodo (desde línea base)"]
[null,null,null,{"$f":"E15","v":"Porcentaje de cursos de posgrado no clínico con promedio de calificación de percepción de calidad superior a 80 puntosFÓRMULA: VARIABLE1 / VARIABLE2 X 100"}]
[]
[]
[]
[]
[]
[]
[]
[]
[]
[]
[]
[]
[]
[]
[null,null,null,{"$f":"F14","v":"VARIABLE 1 "},null,{"$f":"G14","v":"VARIABLE 2"}]
[null,null,null,{"$f":"F15","v":"Número de cursos de formación en posgrado no clínico impartidos con promedio de calificación de percepción de calidad superior a 80 puntos "},null,{"$f":"G15","v":"Total de cursos de formación de posgrado no clínico impartidos en el periodo X 100"}]

{"sheet":"E010 IND 8","index":7,"n_rows":50,"n_cols":7,"rows_kept":50,"cut":false,"hidden":false,"merged":[[2,4,2,5],[3,4,3,5],[4,4,4,5],[5,4,5,5],[7,1,7,3],[32,3,32,4],[32,5,32,6],[12,6,12,7],[13,1,23,1],[13,2,13,3],[14,2,14,3],[16,2,23,2],[25,3,25,6],[26,3,26,6],[27,1,27,6],[28,1,28,6],[29,1,29,6],[30,1,30,6],[33,3,33,4],[33,5,46,6],[48,3,48,4],[48,5,48,6],[49,3,49,4],[49,5,49,6]]}
[null,"COMISION COORDINADORA DE INSTITUTOS NACIONALES DE SALUD"]
[null,"Y HOSPITALES DE ALTA ESPECIALIDAD"]
[null,"Coordinación de Proyectos Estratégicos",null,null,"MATRIZ DE INDICADORES PARA RESULTADOS (MIR) 2016"]
[null,null,null,null,"PP:  E010 \"FORMACIÓN Y CAPACITACIÓN DE RECURSOS HUMANOS PARA LA SALUD\" "]
[]
[null,null,null,null,"EVOLUCIÓN EN EL PERIODO"]
[]
[null,"Clave entidad/unidad:   NCA"]
[]
[null,"Entidad/unidad:   INSTITUTO NACIONAL DE CARDIOLOGÍA IGNACIO CHÁVEZ"]
[]
[]
[]
[null,8,"LINEA BASE INDICADOR",null,"INDICADOR","VARIABLE 1 ","VARIABLE 2"]
[null,null,"AÑO",null,"Eficacia en la impartición de cursos \nde educación continua \n\nFÓRMULA: VARIABLE1 / VARIABLE2 X 100","Número de cursos de educación continua impartidos por la institución en el periodo ","Total de cursos de educación continua programados por la institución en el mismo periodo X 100"]
[null,null,"1/","2011",{"$f":"IF(G16=0,0,ROUND(F16/G16*100,1))","v":95.1},1258,1323]
[null,null,"2/","2009",{"$f":"IF(G17=0,0,ROUND(F17/G17*100,1))","v":0}]
[null,null,null,"2010",{"$f":"IF(G18=0,0,ROUND(F18/G18*100,1))","v":0}]
[null,null,null,"2011",105,63,60]
[null,null,null,"2012",120,72,60]
[null,null,null,"2013",121.4,85,70]
[null,null,null,"2014",79.7,51,64]
[null,null,null,"2015",78.8,52,66]
[null,null,null,"2016",118.9,44,37]
[]
[null,"1/",null,"Línea base del indicador registrada en el PASH 2016: año en que empieza a operar el indicador para el programa (CCINSHAE)."]
[null,"2/",null,"Línea base del indicador institucional: año en que empieza a operar el indicador para la Institución."]
[null,"INSTRUCTIVO"]
[null,"I. Llenar los valores de la tabla a partir del año en que la entidad comprometió el indicador (Línea base)"]
[null,"II. Llenar todos los ejercicios fiscales posteriores al año de la línea base hasta el año 2016 con el valor de cierre de cada ejercicio fiscal; en el caso que sea un indicador nuevo registrar el valor programado."]
[null,"III. Los ejercicios fiscales en que no se comprometío el indicador deberán registrar un valor de cero."]
[]
[null,null,null,{"$f":"E14","v":"INDICADOR"},null,"Breve Explicación del comportamiento del indicador y sus variables en el periodo (desde línea base)"]
[null,null,null,{"$f":"E15","v":"Eficacia en la impartición de cursos de educación continua FÓRMULA: VARIABLE1 / VARIABLE2 X 100"}]
[]
[]
[]
[]
[]
[]
[]
[]
[]
[]
[]
[]
[]
[]
[null,null,null,{"$f":"F14","v":"VARIABLE 1 "},null,{"$f":"G14","v":"VARIABLE 2"}]
[null,null,null,{"$f":"F15","v":"Número de cursos de educación continua impartidos por la institución en el periodo "},null,{"$f":"G15","v":"Total de cursos de educación continua programados por la institución en el mismo periodo X 100"}]

{"sheet":"E010 IND 9","index":8,"n_rows":50,"n_cols":7,"rows_kept":50,"cut":false,"hidden":false,"merged":[[2,4,2,5],[3,4,3,5],[4,4,4,5],[5,4,5,5],[7,1,7,3],[32,3,32,4],[32,5,32,6],[12,6,12,7],[13,1,23,1],[13,2,13,3],[14,2,14,3],[16,2,23,2],[25,3,25,6],[26,3,26,6],[27,1,27,6],[28,1,28,6],[29,1,29,6],[30,1,30,6],[33,3,33,4],[33,5,46,6],[48,3,48,4],[48,5,48,6],[49,3,49,4],[49,5,49,6]]}
[null,"COMISION COORDINADORA DE INSTITUTOS NACIONALES DE SALUD"]
[null,"Y HOSPITALES DE ALTA ESPECIALIDAD"]
[null,"Coordinación de Proyectos Estratégicos",null,null,"MATRIZ DE INDICADORES PARA RESULTADOS (MIR) 2016"]
[null,null,null,null,"PP:  E010 \"FORMACIÓN Y CAPACITACIÓN DE RECURSOS HUMANOS PARA LA SALUD\" "]
[]
[null,null,null,null,"EVOLUCIÓN EN EL PERIODO"]
[]
[null,"Clave entidad/unidad:   NCA"]
[]
[null,"Entidad/unidad:   INSTITUTO NACIONAL DE CARDIOLOGÍA IGNACIO CHÁVEZ"]
[]
[]
[]
[null,9,"LINEA BASE INDICADOR",null,"INDICADOR","VARIABLE 1 ","VARIABLE 2"]
[null,null,"AÑO",null,"Porcentaje de participantes externos en los cursos de educación continua\n\nFÓRMULA: VARIABLE1 / VARIABLE2 X 100","Número de participantes externos en los cursos de educación continua impartidos en el periodo","Total de participantes en los cursos de educación continua impartidos en el periodo x 100"]
[null,null,"1/","2016",{"$f":"IF(G16=0,0,ROUND(F16/G16*100,1))","v":62},42651,68765]
[null,null,"2/","2009",{"$f":"IF(G17=0,0,ROUND(F17/G17*100,1))","v":0}]
[null,null,null,"2010",{"$f":"IF(G18=0,0,ROUND(F18/G18*100,1))","v":0}]
[null,null,null,"2011",0]
[null,null,null,"2012",0]
[null,null,null,"2013",0]
[null,null,null,"2014",0]
[null,null,null,"2015",0]
[null,null,null,"2016",62,3257,5249]
[]
[null,"1/",null,"Línea base del indicador registrada en el PASH 2016: año en que empieza a operar el indicador para el programa (CCINSHAE)."]
[null,"2/",null,"Línea base del indicador institucional: año en que empieza a operar el indicador para la Institución."]
[null,"INSTRUCTIVO"]
[null,"I. Llenar los valores de la tabla a partir del año en que la entidad comprometió el indicador (Línea base)"]
[null,"II. Llenar todos los ejercicios fiscales posteriores al año de la línea base hasta el año 2016 con el valor de cierre de cada ejercicio fiscal; en el caso que sea un indicador nuevo registrar el valor programado."]
[null,"III. Los ejercicios fiscales en que no se comprometío el indicador deberán registrar un valor de cero."]
[]
[null,null,null,{"$f":"E14","v":"INDICADOR"},null,"Breve Explicación del comportamiento del indicador y sus variables en el periodo (desde línea base)"]
[null,null,null,{"$f":"E15","v":"Porcentaje de participantes externos en los cursos de educación continuaFÓRMULA: VARIABLE1 / VARIABLE2 X 100"}]
[]
[]
[]
[]
[]
[]
[]
[]
[]
[]
[]
[]
[]
[]
[null,null,null,{"$f":"F14","v":"VARIABLE 1 "},null,{"$f":"G14","v":"VARIABLE 2"}]
[null,null,null,{"$f":"F15","v":"Número de participantes externos en los cursos de educación continua impartidos en el periodo"},null,{"$f":"G15","v":"Total de participantes en los cursos de educación continua impartidos en el periodo x 100"}]

{"sheet":"E010 IND 10","index":9,"n_rows":50,"n_cols":7,"rows_kept":50,"cut":false,"hidden":false,"merged":[[2,4,2,5],[3,4,3,5],[4,4,4,5],[5,4,5,5],[7,1,7,3],[32,3,32,4],[32,5,32,6],[12,6,12,7],[13,1,23,1],[13,2,13,3],[14,2,14,3],[16,2,23,2],[25,3,25,6],[26,3,26,6],[27,1,27,6],[28,1,28,6],[29,1,29,6],[30,1,30,6],[33,3,33,4],[33,5,46,6],[48,3,48,4],[48,5,48,6],[49,3,49,4],[49,5,49,6]]}
[null,"COMISION COORDINADORA DE INSTITUTOS NACIONALES DE SALUD"]
[null,"Y HOSPITALES DE ALTA ESPECIALIDAD"]
[null,"Coordinación de Proyectos Estratégicos",null,null,"MATRIZ DE INDICADORES PARA RESULTADOS (MIR) 2016"]
[null,null,null,null,"PP:  E010 \"FORMACIÓN Y CAPACITACIÓN DE RECURSOS HUMANOS PARA LA SALUD\" "]
[]
[null,null,null,null,"EVOLUCIÓN EN EL PERIODO"]
[]
[null,"Clave entidad/unidad:   NCA"]
[]
[null,"Entidad/unidad:   INSTITUTO NACIONAL DE CARDIOLOGÍA IGNACIO CHÁVEZ"]
[]
[]
[]
[null,10,"LINEA BASE INDICADOR",null,"INDICADOR","VARIABLE 1 ","VARIABLE 2"]
[null,null,"AÑO",null,"Percepción sobre la calidad de la educación continua \n\nFÓRMULA: VARIABLE1 / VARIABLE2 ","Sumatoria de la calificación manifestada por los profesionales de la salud que participan  en cursos de educación continua (que concluyen en el periodo) encuestados respecto a la calidad percibida de los cursos recibidos  ","Total de profesionales de la salud que participan en cursos de educación continua (que concluyen en el periodo) encuestados "]
[null,null,"1/","2012",{"$f":"IF(G16=0,0,ROUND(F16/G16*1,1))","v":8.6999999999999993},244461,28111]
[null,null,"2/","2009",{"$f":"IF(G17=0,0,ROUND(F17/G17*1,1))","v":0}]
[null,null,null,"2010",{"$f":"IF(G18=0,0,ROUND(F18/G18*1,1))","v":0}]
[null,null,null,"2011",0]
[null,null,null,"2012",9.1,5536,606]
[null,null,null,"2013",9.6,9615,1000]
[null,null,null,"2014",9.5,8126,856]
[null,null,null,"2015",9.4,8535,905]
[null,null,null,"2016",9.6,9171,951]
[]
[null,"1/",null,"Línea base del indicador registrada en el PASH 2016: año en que empieza a operar el indicador para el programa (CCINSHAE)."]
[null,"2/",null,"Línea base del indicador institucional: año en que empieza a operar el indicador para la Institución."]
[null,"INSTRUCTIVO"]
[null,"I. Llenar los valores de la tabla a partir del año en que la entidad comprometió el indicador (Línea base)"]
[null,"II. Llenar todos los ejercicios fiscales posteriores al año de la línea base hasta el año 2016 con el valor de cierre de cada ejercicio fiscal; en el caso que sea un indicador nuevo registrar el valor programado."]
[null,"III. Los ejercicios fiscales en que no se comprometío el indicador deberán registrar un valor de cero."]
[]
[null,null,null,{"$f":"E14","v":"INDICADOR"},null,"Breve Explicación del comportamiento del indicador y sus variables en el periodo (desde línea base)"]
[null,null,null,{"$f":"E15","v":"Percepción sobre la calidad de la educación continua FÓRMULA: VARIABLE1 / VARIABLE2 "}]
[]
[]
[]
[]
[]
[]
[]
[]
[]
[]
[]
[]
[]
[]
[null,null,null,{"$f":"F14","v":"VARIABLE 1 "},null,{"$f":"G14","v":"VARIABLE 2"}]
[null,null,null,{"$f":"F15","v":"Sumatoria de la calificación manifestada por los profesionales de la salud que participan  en cursos de educación continua (que concluyen en el periodo) encuestados respecto a la calidad percibida de los cursos recibidos  "},null,{"$f":"G15","v":"Total de profesionales de la salud que participan en cursos de educación continua (que concluyen en el periodo) encuestados "}]

{"sheet":"E010 IND 11","index":10,"n_rows":50,"n_cols":7,"rows_kept":50,"cut":false,"hidden":false,"merged":[[2,4,2,5],[3,4,3,5],[4,4,4,5],[5,4,5,5],[7,1,7,3],[32,3,32,4],[32,5,32,6],[12,6,12,7],[13,1,23,1],[13,2,13,3],[14,2,14,3],[16,2,23,2],[25,3,25,6],[26,3,26,6],[27,1,27,6],[28,1,28,6],[29,1,29,6],[30,1,30,6],[33,3,33,4],[33,5,46,6],[48,3,48,4],[48,5,48,6],[49,3,49,4],[49,5,49,6]]}
[null,"COMISION COORDINADORA DE INSTITUTOS NACIONALES DE SALUD"]
[null,"Y HOSPITALES DE ALTA ESPECIALIDAD"]
[null,"Coordinación de Proyectos Estratégicos",null,null,"MATRIZ DE INDICADORES PARA RESULTADOS (MIR) 2016"]
[null,null,null,null,"PP:  E010 \"FORMACIÓN Y CAPACITACIÓN DE RECURSOS HUMANOS PARA LA SALUD\" "]
[]
[null,null,null,null,"EVOLUCIÓN EN EL PERIODO"]
[]
[null,"Clave entidad/unidad:   NCA"]
[]
[null,"Entidad/unidad:   INSTITUTO NACIONAL DE CARDIOLOGÍA IGNACIO CHÁVEZ"]
[]
[]
[]
[null,11,"LINEA BASE INDICADOR",null,"INDICADOR","VARIABLE 1 ","VARIABLE 2"]
[null,null,"AÑO",null,"Porcentaje de instituciones con programas de seguimiento de egresados (Posgrados clínicos y no clínicos)\n\nFÓRMULA: VARIABLE1 / VARIABLE2 X 100","Número de instituciones que imparten estudios de posgrado clínico y no clínico con seguimiento de egresados","Total de instituciones que imparten estudios de posgrado  x 100"]
[null,null,"1/","2016",{"$f":"IF(G16=0,0,ROUND(F16/G16*100,1))","v":59.1},13,22]
[null,null,"2/","2009",{"$f":"IF(G17=0,0,ROUND(F17/G17*100,1))","v":0}]
[null,null,null,"2010",{"$f":"IF(G18=0,0,ROUND(F18/G18*100,1))","v":0}]
[null,null,null,"2011",0]
[null,null,null,"2012",0]
[null,null,null,"2013",0]
[null,null,null,"2014",0]
[null,null,null,"2015",0]
[null,null,null,"2016",0]
[]
[null,"1/",null,"Línea base del indicador registrada en el PASH 2016: año en que empieza a operar el indicador para el programa (CCINSHAE)."]
[null,"2/",null,"Línea base del indicador institucional: año en que empieza a operar el indicador para la Institución."]
[null,"INSTRUCTIVO"]
[null,"I. Llenar los valores de la tabla a partir del año en que la entidad comprometió el indicador (Línea base)"]
[null,"II. Llenar todos los ejercicios fiscales posteriores al año de la línea base hasta el año 2016 con el valor de cierre de cada ejercicio fiscal; en el caso que sea un indicador nuevo registrar el valor programado."]
[null,"III. Los ejercicios fiscales en que no se comprometío el indicador deberán registrar un valor de cero."]
[]
[null,null,null,{"$f":"E14","v":"INDICADOR"},null,"Breve Explicación del comportamiento del indicador y sus variables en el periodo (desde línea base)"]
[null,null,null,{"$f":"E15","v":"Porcentaje de instituciones con programas de seguimiento de egresados (Posgrados clínicos y no clínicos)FÓRMULA: VARIABLE1 / VARIABLE2 X 100"},null,"ESTE INDICADOR CORRESPONDE A LA DIRECCIÓN GENERAL DE CALIDAD Y EDUCACIÓN EN SALUD"]
[]
[]
[]
[]
[]
[]
[]
[]
[]
[]
[]
[]
[]
[]
[null,null,null,{"$f":"F14","v":"VARIABLE 1 "},null,{"$f":"G14","v":"VARIABLE 2"}]
[null,null,null,{"$f":"F15","v":"Número de instituciones que imparten estudios de posgrado clínico y no clínico con seguimiento de egresados"},null,{"$f":"G15","v":"Total de instituciones que imparten estudios de posgrado  x 100"}]

{"sheet":"E010 IND 12","index":11,"n_rows":50,"n_cols":7,"rows_kept":50,"cut":false,"hidden":false,"merged":[[2,4,2,5],[3,4,3,5],[4,4,4,5],[5,4,5,5],[7,1,7,3],[32,3,32,4],[32,5,32,6],[12,6,12,7],[13,1,23,1],[13,2,13,3],[14,2,14,3],[16,2,23,2],[25,3,25,6],[26,3,26,6],[27,1,27,6],[28,1,28,6],[29,1,29,6],[30,1,30,6],[33,3,33,4],[33,5,46,6],[48,3,48,4],[48,5,48,6],[49,3,49,4],[49,5,49,6]]}
[null,"COMISION COORDINADORA DE INSTITUTOS NACIONALES DE SALUD"]
[null,"Y HOSPITALES DE ALTA ESPECIALIDAD"]
[null,"Coordinación de Proyectos Estratégicos",null,null,"MATRIZ DE INDICADORES PARA RESULTADOS (MIR) 2016"]
[null,null,null,null,"PP:  E010 \"FORMACIÓN Y CAPACITACIÓN DE RECURSOS HUMANOS PARA LA SALUD\" "]
[]
[null,null,null,null,"EVOLUCIÓN EN EL PERIODO"]
[]
[null,"Clave entidad/unidad:   NCA"]
[]
[null,"Entidad/unidad:   INSTITUTO NACIONAL DE CARDIOLOGÍA IGNACIO CHÁVEZ"]
[]
[]
[]
[null,12,"LINEA BASE INDICADOR",null,"INDICADOR","VARIABLE 1 ","VARIABLE 2"]
[null,null,"AÑO",null,"Porcentaje de cobertura de matrícula requerida\n\nFÓRMULA: VARIABLE1 / VARIABLE2 X 100","Número de espacios educativos de posgrado cubiertos (becas o matricula)","Número de espacios educativos de posgrado requeridos de acuerdo a las necesidades institucionales   x 100"]
[null,null,"1/","2016",{"$f":"IF(G16=0,0,ROUND(F16/G16*100,1))","v":96.4},4533,4700]
[null,null,"2/","2009",{"$f":"IF(G17=0,0,ROUND(F17/G17*100,1))","v":0}]
[null,null,null,"2010",{"$f":"IF(G18=0,0,ROUND(F18/G18*100,1))","v":0}]
[null,null,null,"2011",0]
[null,null,null,"2012",0]
[null,null,null,"2013",0]
[null,null,null,"2014",0]
[null,null,null,"2015",0]
[null,null,null,"2016",97,191,197]
[]
[null,"1/",null,"Línea base del indicador registrada en el PASH 2016: año en que empieza a operar el indicador para el programa (CCINSHAE)."]
[null,"2/",null,"Línea base del indicador institucional: año en que empieza a operar el indicador para la Institución."]
[null,"INSTRUCTIVO"]
[null,"I. Llenar los valores de la tabla a partir del año en que la entidad comprometió el indicador (Línea base)"]
[null,"II. Llenar todos los ejercicios fiscales posteriores al año de la línea base hasta el año 2016 con el valor de cierre de cada ejercicio fiscal; en el caso que sea un indicador nuevo registrar el valor programado."]
[null,"III. Los ejercicios fiscales en que no se comprometío el indicador deberán registrar un valor de cero."]
[]
[null,null,null,{"$f":"E14","v":"INDICADOR"},null,"Breve Explicación del comportamiento del indicador y sus variables en el periodo (desde línea base)"]
[null,null,null,{"$f":"E15","v":"Porcentaje de cobertura de matrícula requeridaFÓRMULA: VARIABLE1 / VARIABLE2 X 100"}]
[]
[]
[]
[]
[]
[]
[]
[]
[]
[]
[]
[]
[]
[]
[null,null,null,{"$f":"F14","v":"VARIABLE 1 "},null,{"$f":"G14","v":"VARIABLE 2"}]
[null,null,null,{"$f":"F15","v":"Número de espacios educativos de posgrado cubiertos (becas o matricula)"},null,{"$f":"G15","v":"Número de espacios educativos de posgrado requeridos de acuerdo a las necesidades institucionales   x 100"}]

{"sheet":"E010 IND 13","index":12,"n_rows":50,"n_cols":7,"rows_kept":50,"cut":false,"hidden":false,"merged":[[2,4,2,5],[3,4,3,5],[4,4,4,5],[5,4,5,5],[7,1,7,3],[32,3,32,4],[32,5,32,6],[12,6,12,7],[13,1,23,1],[13,2,13,3],[14,2,14,3],[16,2,23,2],[25,3,25,6],[26,3,26,6],[27,1,27,6],[28,1,28,6],[29,1,29,6],[30,1,30,6],[33,3,33,4],[33,5,46,6],[48,3,48,4],[48,5,48,6],[49,3,49,4],[49,5,49,6]]}
[null,"COMISION COORDINADORA DE INSTITUTOS NACIONALES DE SALUD"]
[null,"Y HOSPITALES DE ALTA ESPECIALIDAD"]
[null,"Coordinación de Proyectos Estratégicos",null,null,"MATRIZ DE INDICADORES PARA RESULTADOS (MIR) 2016"]
[null,null,null,null,"PP:  E010 \"FORMACIÓN Y CAPACITACIÓN DE RECURSOS HUMANOS PARA LA SALUD\" "]
[]
[null,null,null,null,"EVOLUCIÓN EN EL PERIODO"]
[]
[null,"Clave entidad/unidad:   NCA"]
[]
[null,"Entidad/unidad:   INSTITUTO NACIONAL DE CARDIOLOGÍA IGNACIO CHÁVEZ"]
[]
[]
[]
[null,13,"LINEA BASE INDICADOR",null,"INDICADOR","VARIABLE 1 ","VARIABLE 2"]
[null,null,"AÑO",null,"Porcentaje de postulantes aceptados\n\nFÓRMULA: VARIABLE1 / VARIABLE2 X 100","Número de candidatos seleccionados por la institución para realizar estudios de posgrado ","Total de aspirantes que se presentaron a la institución para realizar estudios de posgrado x 100"]
[null,null,"1/","2016",{"$f":"IF(G16=0,0,ROUND(F16/G16*100,1))","v":50},2646,5288]
[null,null,"2/","2009",{"$f":"IF(G17=0,0,ROUND(F17/G17*100,1))","v":0}]
[null,null,null,"2010",{"$f":"IF(G18=0,0,ROUND(F18/G18*100,1))","v":0}]
[null,null,null,"2011",0]
[null,null,null,"2012",0]
[null,null,null,"2013",0]
[null,null,null,"2014",0]
[null,null,null,"2015",0]
[null,null,null,"2016",37,137,370]
[]
[null,"1/",null,"Línea base del indicador registrada en el PASH 2016: año en que empieza a operar el indicador para el programa (CCINSHAE)."]
[null,"2/",null,"Línea base del indicador institucional: año en que empieza a operar el indicador para la Institución."]
[null,"INSTRUCTIVO"]
[null,"I. Llenar los valores de la tabla a partir del año en que la entidad comprometió el indicador (Línea base)"]
[null,"II. Llenar todos los ejercicios fiscales posteriores al año de la línea base hasta el año 2016 con el valor de cierre de cada ejercicio fiscal; en el caso que sea un indicador nuevo registrar el valor programado."]
[null,"III. Los ejercicios fiscales en que no se comprometío el indicador deberán registrar un valor de cero."]
[]
[null,null,null,{"$f":"E14","v":"INDICADOR"},null,"Breve Explicación del comportamiento del indicador y sus variables en el periodo (desde línea base)"]
[null,null,null,{"$f":"E15","v":"Porcentaje de postulantes aceptadosFÓRMULA: VARIABLE1 / VARIABLE2 X 100"}]
[]
[]
[]
[]
[]
[]
[]
[]
[]
[]
[]
[]
[]
[]
[null,null,null,{"$f":"F14","v":"VARIABLE 1 "},null,{"$f":"G14","v":"VARIABLE 2"}]
[null,null,null,{"$f":"F15","v":"Número de candidatos seleccionados por la institución para realizar estudios de posgrado "},null,{"$f":"G15","v":"Total de aspirantes que se presentaron a la institución para realizar estudios de posgrado x 100"}]

{"sheet":"E010 IND 14","index":13,"n_rows":50,"n_cols":7,"rows_kept":50,"cut":false,"hidden":false,"merged":[[2,4,2,5],[3,4,3,5],[4,4,4,5],[5,4,5,5],[7,1,7,3],[32,3,32,4],[32,5,32,6],[12,6,12,7],[13,1,23,1],[13,2,13,3],[14,2,14,3],[16,2,23,2],[25,3,25,6],[26,3,26,6],[27,1,27,6],[28,1,28,6],[29,1,29,6],[30,1,30,6],[33,3,33,4],[33,5,46,6],[48,3,48,4],[48,5,48,6],[49,3,49,4],[49,5,49,6]]}
[null,"COMISION COORDINADORA DE INSTITUTOS NACIONALES DE SALUD"]
[null,"Y HOSPITALES DE ALTA ESPECIALIDAD"]
[null,"Coordinación de Proyectos Estratégicos",null,null,"MATRIZ DE INDICADORES PARA RESULTADOS (MIR) 2016"]
[null,null,null,null,"PP:  E010 \"FORMACIÓN Y CAPACITACIÓN DE RECURSOS HUMANOS PARA LA SALUD\" "]
[]
[null,null,null,null,"EVOLUCIÓN EN EL PERIODO"]
[]
[null,"Clave entidad/unidad:   NCA"]
[]
[null,"Entidad/unidad:   INSTITUTO NACIONAL DE CARDIOLOGÍA IGNACIO CHÁVEZ"]
[]
[]
[]
[null,14,"LINEA BASE INDICADOR",null,"INDICADOR","VARIABLE 1 ","VARIABLE 2"]
[null,null,"AÑO",null,"Eficacia en la captación de participantes a cursos de educación continua\n\nFÓRMULA: VARIABLE1 / VARIABLE2 X 100","Número de profesionales de la salud efectivamente inscritos a los cursos de educación continua realizados por la institución durante el periodo reportado ","Número de  profesionales de la salud que se proyectó asistirían a los cursos de educación continua que se realizaron durante el periodo reportado X 100"]
[null,null,"1/","2012",{"$f":"IF(G16=0,0,ROUND(F16/G16*100,1))","v":98.7},102053,103424]
[null,null,"2/","2009",{"$f":"IF(G17=0,0,ROUND(F17/G17*100,1))","v":0}]
[null,null,null,"2010",{"$f":"IF(G18=0,0,ROUND(F18/G18*100,1))","v":0}]
[null,null,null,"2011",0]
[null,null,null,"2012",126.7,3706,2925]
[null,null,null,"2013",120,4321,3600]
[null,null,null,"2014",109.1,3928,3600]
[null,null,null,"2015",94.6,3405,3600]
[null,null,null,"2016",143.19999999999999,5249,3666]
[]
[null,"1/",null,"Línea base del indicador registrada en el PASH 2016: año en que empieza a operar el indicador para el programa (CCINSHAE)."]
[null,"2/",null,"Línea base del indicador institucional: año en que empieza a operar el indicador para la Institución."]
[null,"INSTRUCTIVO"]
[null,"I. Llenar los valores de la tabla a partir del año en que la entidad comprometió el indicador (Línea base)"]
[null,"II. Llenar todos los ejercicios fiscales posteriores al año de la línea base hasta el año 2016 con el valor de cierre de cada ejercicio fiscal; en el caso que sea un indicador nuevo registrar el valor programado."]
[null,"III. Los ejercicios fiscales en que no se comprometío el indicador deberán registrar un valor de cero."]
[]
[null,null,null,{"$f":"E14","v":"INDICADOR"},null,"Breve Explicación del comportamiento del indicador y sus variables en el periodo (desde línea base)"]
[null,null,null,{"$f":"E15","v":"Eficacia en la captación de participantes a cursos de educación continuaFÓRMULA: VARIABLE1 / VARIABLE2 X 100"}]
[]
[]
[]
[]
[]
[]
[]
[]
[]
[]
[]
[]
[]
[]
[null,null,null,{"$f":"F14","v":"VARIABLE 1 "},null,{"$f":"G14","v":"VARIABLE 2"}]
[null,null,null,{"$f":"F15","v":"Número de profesionales de la salud efectivamente inscritos a los cursos de educación continua realizados por la institución durante el periodo reportado "},null,{"$f":"G15","v":"Número de  profesionales de la salud que se proyectó asistirían a los cursos de educación continua que se realizaron durante el periodo reportado X 100"}]